fUST/lending_fUST_20250523
["ID","MTS","AMOUNT","RATE_DAILY","PERIOD"]
[362025140,1747938645948,-812.43,0.00022142,2]
[362025142,1747938645959,-557.38,0.00022142,2]
[362025144,1747938645969,-1282.81,0.00022142,2]
[362025146,1747938645981,-687.32,0.00022142,2]
[362025148,1747938645991,-430.0,0.00022142,2]
[362025150,1747938646001,-447.61,0.00022142,2]
[362025152,1747938646012,-938.74,0.00022142,2]
[362025154,1747938646022,-382.69,0.00022143,2]
[362025156,1747938646032,-430.0,0.00022143,2]
[362025158,1747938646042,-430.0,0.00022143,2]
[362025160,1747938646054,-194.84,0.00022143,2]
[362025162,1747938646063,-812.63,0.00022143,2]
[362025164,1747938646073,-430.0,0.00022143,2]
[362025166,1747938646083,-853.64,0.00022144,2]
[362025168,1747938646093,-654.0,0.00022144,2]
[362025170,1747938646102,-430.0,0.00022144,2]
[362025172,1747938646112,-430.0,0.00022191,2]
[362025174,1747938646122,-854.93,0.00022191,2]
[362025176,1747938646132,-1427.39,0.00022191,2]
[362025192,1747938646276,-2842.71,0.00022191,2]
[362025194,1747938646286,-467.16,0.00022191,2]
[362025196,1747938646296,-430.0,0.00022191,2]
[362025198,1747938646306,-918.76,0.00022191,2]
[362025200,1747938646316,-448.23,0.00022191,2]
[362025202,1747938646326,-722.25,0.00022191,2]
[362025204,1747938646336,-430.0,0.00022191,2]
[362025206,1747938646346,-430.0,0.00022191,2]
[362025208,1747938646356,-1047.05,0.00022191,2]
[362025210,1747938646366,-519.69,0.00022191,2]
[362025212,1747938646377,-646.58,0.00022191,2]
[362025214,1747938646387,-430.0,0.00022191,2]
[362025216,1747938646401,-661.62,0.00022191,2]
[362025218,1747938646411,-5406.93,0.00022191,2]
[362025220,1747938646421,-430.0,0.00022191,2]
[362025222,1747938646433,-1662.13,0.00022191,2]
[362025224,1747938646442,-806.46,0.00022191,2]
[362025226,1747938646452,-430.0,0.00022191,2]
[362025228,1747938646462,-1325.31,0.00022191,2]
[362025230,1747938646474,-3314.96,0.00022191,2]
[362025232,1747938646484,-430.0,0.00022191,2]
[362025234,1747938646497,-516.66,0.00022191,2]
[362025236,1747938646507,-572.41,0.00022191,2]
[362025238,1747938646517,-564.26,0.00022191,2]
[362025240,1747938646528,-1297.37510748,0.0002221,6]
[362025242,1747938646537,-500.0,0.00022341,2]
[362025244,1747938646547,-2000.0,0.00022368,2]
[362025246,1747938646557,-613.41,0.00022416,2]
[362025248,1747938646566,-521.56,0.00022416,2]
[362025250,1747938646576,-430.0,0.00022416,2]
[362025252,1747938646585,-430.0,0.00022416,2]
[362025254,1747938646595,-430.0,0.00022416,2]
[362025256,1747938646605,-500.0,0.00022416,2]
[362025258,1747938646614,-430.0,0.00022416,2]
[362025260,1747938646624,-430.0,0.00022416,2]
[362025262,1747938646633,-533.88,0.00022416,2]
[362025264,1747938646643,-1038.14,0.00022416,2]
[362025266,1747938646653,-486.91,0.00022416,2]
[362025268,1747938646663,-430.0,0.00022416,2]
[362025270,1747938646674,-1108.09,0.00022416,2]
[362025272,1747938646684,-476.75,0.00022416,2]
[362025274,1747938646694,-549.04,0.00022416,2]
[362025277,1747938646705,-430.0,0.00022416,2]
[362025279,1747938646715,-922.95,0.00022416,2]
[362025281,1747938646724,-1576.53,0.00022416,2]
[362025283,1747938646736,-432.68,0.00022416,2]
[362025285,1747938646748,-597.94,0.00022416,2]
[362025288,1747938646771,-1589.74,0.00022416,2]
[362025290,1747938646786,-430.0,0.00022416,2]
[362025292,1747938646799,-1067.49,0.00022416,2]
[362025294,1747938646813,-430.0,0.00022416,2]
[362025296,1747938646825,-677.05,0.00022416,2]
[362025298,1747938646836,-2373.35,0.00022416,2]
[362025300,1747938646847,-577.6,0.00022416,2]
[362025303,1747938646858,-430.0,0.00022416,2]
[362025305,1747938646869,-1145.41,0.00022416,2]
[362025307,1747938646880,-1524.66,0.00022416,2]
[362025309,1747938646890,-812.43,0.00022416,2]
[362025311,1747938646901,-557.38,0.00022416,2]
[362025313,1747938646912,-1282.81,0.00022416,2]
[362025315,1747938646923,-687.32,0.00022416,2]
[362025317,1747938646934,-430.0,0.00022416,2]
[362025319,1747938646944,-447.61,0.00022416,2]
[362025322,1747938646955,-938.74,0.00022416,2]
[362025324,1747938646966,-430.0,0.00022417,2]
[362025326,1747938646976,-430.0,0.00022417,2]
[362025328,1747938646986,-194.84,0.00022417,2]
[362025330,1747938646996,-812.63,0.00022417,2]
[362025332,1747938647006,-430.0,0.00022417,2]
[362025334,1747938647016,-1297.37510748,0.00022417,7]
[362025336,1747938647026,-853.64,0.00022418,2]
[362025338,1747938647036,-654.0,0.00022418,2]
[362025340,1747938647048,-160.55365552,0.00022418,2]
[362025342,1747938647058,-215.0738,0.00022449,2]
[362025344,1747938647068,-212.4501065,0.0002246,3]
[362025346,1747938647078,-430.0,0.00022465,2]
[362025348,1747938647089,-854.93,0.00022465,2]
[362025351,1747938647099,-1427.39,0.00022465,2]
[362025353,1747938647111,-2842.71,0.00022465,2]
[362025355,1747938647120,-467.16,0.00022465,2]
[362025357,1747938647131,-430.0,0.00022465,2]
[362025359,1747938647141,-918.76,0.00022465,2]
[362025361,1747938647152,-448.23,0.00022465,2]
[362025363,1747938647163,-722.25,0.00022465,2]
[362025365,1747938647173,-430.0,0.00022465,2]
[362025367,1747938647183,-430.0,0.00022465,2]
[362025369,1747938647194,-1047.05,0.00022465,2]
[362025371,1747938647205,-519.69,0.00022465,2]
[362025373,1747938647216,-646.58,0.00022465,2]
[362025375,1747938647226,-661.62,0.00022465,2]
[362025377,1747938647238,-5406.93,0.00022465,2]
[362025379,1747938647248,-214.40769286,0.00022465,2]
[362025381,1747938647258,-1662.13,0.00022465,2]
[362025383,1747938647268,-806.46,0.00022465,2]
[362025385,1747938647278,-562.36513543,0.00022465,2]
[362025387,1747938647288,-1325.31,0.00022465,2]
[362025389,1747938647298,-3314.96,0.00022465,2]
[362025392,1747938647311,-430.0,0.00022465,2]
[362025394,1747938647322,-516.66,0.00022465,2]
[362025396,1747938647331,-572.41,0.00022465,2]
[362025398,1747938647342,-564.26,0.00022465,2]
[362025400,1747938647353,-500.0,0.00022536,2]
[362025402,1747938647363,-500.0,0.00022536,2]
[362025404,1747938647373,-500.0,0.00022536,2]
[362025406,1747938647385,-500.0,0.00022536,2]
[362025408,1747938647401,-500.0,0.00022536,2]
[362025409,1747938647412,-500.0,0.00022536,2]
[362025410,1747938647422,-500.0,0.00022536,2]
[362025411,1747938647434,-500.0,0.00022536,2]
[362025412,1747938647444,-500.0,0.00022536,2]
[362025413,1747938647455,-194.43172914,0.00022536,2]
[362025414,1747938647466,-500.0,0.00022536,2]
[362025415,1747938647477,-500.0,0.00022536,2]
[362025416,1747938647488,-600.0,0.00022536,2]
[362025417,1747938647499,-1077.989096,0.0002254,2]
[362025418,1747938647509,-191.26979472,0.00022548,2]
[362025419,1747938647520,-759.60971459,0.00022548,2]
[362025420,1747938647530,-176.0716068,0.00022548,2]
[362025421,1747938647541,-306.0,0.00022548,2]
[362025422,1747938647551,-153.0,0.00022548,2]
[362025423,1747938647564,-153.0,0.00022548,2]
[362025424,1747938647574,-153.0,0.00022548,2]
[362025425,1747938647584,-362.907442,0.00022603,2]
[362025426,1747938647594,-823.0,0.00022609,2]
[362025427,1747938647612,-1297.37510748,0.00022624,7]
[362025429,1747938647622,-1300.0,0.00022639,2]
[362025432,1747938647633,-613.41,0.0002269,2]
[362025434,1747938647643,-521.56,0.0002269,2]
[362025436,1747938647654,-430.0,0.0002269,2]
[362025438,1747938647664,-430.0,0.0002269,2]
[362025440,1747938647675,-430.0,0.0002269,2]
[362025442,1747938647685,-500.0,0.0002269,2]
[362025444,1747938647695,-430.0,0.0002269,2]
[362025446,1747938647706,-430.0,0.0002269,2]
[362025448,1747938647716,-533.88,0.0002269,2]
[362025450,1747938647727,-1038.14,0.0002269,2]
[362025452,1747938647737,-486.91,0.0002269,2]
[362025454,1747938647747,-430.0,0.0002269,2]
[362025456,1747938647758,-1108.09,0.0002269,2]
[362025458,1747938647769,-476.75,0.0002269,2]
[362025460,1747938647779,-549.04,0.0002269,2]
[362025462,1747938647788,-430.0,0.0002269,2]
[362025464,1747938647799,-922.95,0.0002269,2]
[362025466,1747938647810,-1576.53,0.0002269,2]
[362025468,1747938647820,-432.68,0.0002269,2]
[362025470,1747938647830,-597.94,0.0002269,2]
[362025472,1747938647841,-1589.74,0.0002269,2]
[362025474,1747938647851,-430.0,0.0002269,2]
[362025476,1747938647861,-1067.49,0.0002269,2]
[362025478,1747938647871,-430.0,0.0002269,2]
[362025480,1747938647882,-677.05,0.0002269,2]
[362025482,1747938647892,-2373.35,0.0002269,2]
[362025484,1747938647902,-577.6,0.0002269,2]
[362025486,1747938647912,-430.0,0.0002269,2]
[362025488,1747938647923,-1145.41,0.0002269,2]
[362025490,1747938647933,-1524.66,0.0002269,2]
[362025492,1747938647943,-812.43,0.0002269,2]
[362025494,1747938647954,-557.38,0.0002269,2]
[362025496,1747938647964,-1282.81,0.0002269,2]
[362025498,1747938647975,-687.32,0.0002269,2]
[362025500,1747938647985,-430.0,0.0002269,2]
[362025502,1747938647995,-447.61,0.0002269,2]
[362025505,1747938648005,-938.74,0.0002269,2]
[362025507,1747938648015,-430.0,0.00022691,2]
[362025509,1747938648027,-430.0,0.00022691,2]
[362025511,1747938648037,-194.84,0.00022691,2]
[362025513,1747938648048,-812.63,0.00022691,2]
[362025515,1747938648058,-430.0,0.00022691,2]
[362025517,1747938648068,-853.64,0.00022692,2]
[362025519,1747938648078,-654.0,0.00022692,2]
[362025521,1747938648089,-430.0,0.00022739,2]
[362025523,1747938648099,-854.93,0.00022739,2]
[362025525,1747938648109,-1427.39,0.00022739,2]
[362025527,1747938648121,-2842.71,0.00022739,2]
[362025529,1747938648130,-467.16,0.00022739,2]
[362025531,1747938648141,-430.0,0.00022739,2]
[362025533,1747938648152,-918.76,0.00022739,2]
[362025535,1747938648162,-448.23,0.00022739,2]
[362025538,1747938648173,-722.25,0.00022739,2]
[362025539,1747938648183,-430.0,0.00022739,2]
[362025542,1747938648193,-430.0,0.00022739,2]
[362025544,1747938648204,-1047.05,0.00022739,2]
[362025546,1747938648216,-519.69,0.00022739,2]
[362025548,1747938648227,-646.58,0.00022739,2]
[362025550,1747938648238,-661.62,0.00022739,2]
[362025552,1747938648248,-5406.93,0.00022739,2]
[362025554,1747938648258,-1662.13,0.00022739,2]
[362025556,1747938648269,-806.46,0.00022739,2]
[362025558,1747938648280,-1325.31,0.00022739,2]
[362025560,1747938648291,-3314.96,0.00022739,2]
[362025562,1747938648301,-430.0,0.00022739,2]
[362025564,1747938648312,-516.66,0.00022739,2]
[362025566,1747938648322,-572.41,0.00022739,2]
[362025568,1747938648331,-564.26,0.00022739,2]
[362025570,1747938648341,-404.0,0.00022807,2]
[362025572,1747938648351,-960.0,0.00022807,2]
[362025573,1747938648362,-500.0,0.00022829,2]
[362025574,1747938648372,-500.0,0.00022829,2]
[362025575,1747938648382,-500.0,0.00022829,2]
[362025576,1747938648397,-500.0,0.00022829,2]
[362025577,1747938648407,-1297.37510748,0.00022831,8]
[362025578,1747938648417,-2500.0,0.00022915,2]
[362025579,1747938648428,-613.41,0.00022964,2]
[362025580,1747938648439,-521.56,0.00022964,2]
[362025581,1747938648449,-430.0,0.00022964,2]
[362025582,1747938648460,-379.69257944,0.00022964,2]
[362025583,1747938648471,-430.0,0.00022964,2]
[362025584,1747938648482,-500.0,0.00022964,2]
[362025585,1747938648492,-430.0,0.00022964,2]
[362025586,1747938648503,-430.0,0.00022964,2]
[362025587,1747938648514,-533.88,0.00022964,2]
[362025588,1747938648525,-1038.14,0.00022964,2]
[362025589,1747938648535,-486.91,0.00022964,2]
[362025590,1747938648545,-430.0,0.00022964,2]
[362025591,1747938648557,-1108.09,0.00022964,2]
[362025592,1747938648567,-476.75,0.00022964,2]
[362025593,1747938648578,-549.04,0.00022964,2]
[362025594,1747938648588,-430.0,0.00022964,2]
[362025595,1747938648599,-922.95,0.00022964,2]
[362025596,1747938648609,-1576.53,0.00022964,2]
[362025597,1747938648619,-432.68,0.00022964,2]
[362025598,1747938648630,-597.94,0.00022964,2]
[362025599,1747938648641,-1589.74,0.00022964,2]
[362025600,1747938648652,-1067.49,0.00022964,2]
[362025602,1747938648662,-430.0,0.00022964,2]
[362025604,1747938648673,-430.0,0.00022964,2]
[362025606,1747938648684,-677.05,0.00022964,2]
[362025609,1747938648695,-2373.35,0.00022964,2]
[362025610,1747938648705,-577.6,0.00022964,2]
[362025613,1747938648717,-430.0,0.00022964,2]
[362025615,1747938648727,-1145.41,0.00022964,2]
[362025617,1747938648737,-1524.66,0.00022964,2]
[362025619,1747938648747,-812.43,0.00022964,2]
[362025621,1747938648758,-557.38,0.00022964,2]
[362025623,1747938648770,-1282.81,0.00022964,2]
[362025625,1747938648781,-687.32,0.00022964,2]
[362025627,1747938648794,-430.0,0.00022964,2]
[362025629,1747938648804,-447.61,0.00022964,2]
[362025631,1747938648815,-938.74,0.00022964,2]
[362025633,1747938648825,-430.0,0.00022965,2]
[362025634,1747938648836,-430.0,0.00022965,2]
[362025636,1747938648846,-194.84,0.00022965,2]
[362025638,1747938648857,-812.63,0.00022965,2]
[362025641,1747938648867,-430.0,0.00022965,2]
[362025643,1747938648878,-853.64,0.00022966,2]
[362025644,1747938648888,-654.0,0.00022966,2]
[362025647,1747938648898,-500.0,0.00023,30]
[362025649,1747938648908,-500.0,0.00023,30]
[362025651,1747938648919,-430.0,0.00023013,2]
[362025653,1747938648929,-854.93,0.00023013,2]
[362025656,1747938648952,-1427.39,0.00023013,2]
[362025658,1747938648963,-2842.71,0.00023013,2]
[362025660,1747938648974,-467.16,0.00023013,2]
[362025662,1747938648984,-430.0,0.00023013,2]
[362025664,1747938648995,-918.76,0.00023013,2]
[362025666,1747938649005,-448.23,0.00023013,2]
[362025668,1747938649016,-722.25,0.00023013,2]
[362025670,1747938649025,-430.0,0.00023013,2]
[362025672,1747938649035,-430.0,0.00023013,2]
[362025674,1747938649045,-1047.05,0.00023013,2]
[362025676,1747938649056,-519.69,0.00023013,2]
[362025678,1747938649067,-646.58,0.00023013,2]
[362025680,1747938649077,-661.62,0.00023013,2]
[362025682,1747938649087,-5406.93,0.00023013,2]
[362025684,1747938649096,-1662.13,0.00023013,2]
[362025687,1747938649107,-806.46,0.00023013,2]
[362025689,1747938649117,-1325.31,0.00023013,2]
[362025691,1747938649129,-3314.96,0.00023013,2]
[362025693,1747938649140,-430.0,0.00023013,2]
[362025695,1747938649150,-516.66,0.00023013,2]
[362025697,1747938649161,-572.41,0.00023013,2]
[362025699,1747938649172,-564.26,0.00023013,2]
[362025701,1747938649182,-1297.37510748,0.00023038,8]
[362025720,1747938649356,-1000.0,0.00023084,2]
[362025723,1747938649383,-1000.0,0.00023084,2]
[362025725,1747938649396,-1000.0,0.00023084,2]
[362025727,1747938649407,-1000.0,0.00023084,2]
[362025729,1747938649418,-991.67793324,0.00023084,2]
[362025731,1747938649429,-1082.82441482,0.00023084,2]
[362025733,1747938649440,-1000.0,0.00023084,2]
[362025735,1747938649450,-1000.0,0.00023084,2]
[362025737,1747938649460,-1051.87815415,0.00023084,2]
[362025739,1747938649472,-1000.0,0.00023084,2]
[362025741,1747938649483,-1000.0,0.00023084,2]
[362025744,1747938649493,-1200.0,0.00023084,2]
[362025745,1747938649504,-636.0,0.000231,2]
[362025748,1747938649514,-613.41,0.00023238,2]
[362025750,1747938649542,-521.56,0.00023238,2]
[362025752,1747938649561,-430.0,0.00023238,2]
[362025754,1747938649572,-430.0,0.00023238,2]
[362025756,1747938649584,-500.0,0.00023238,2]
[362025758,1747938649595,-430.0,0.00023238,2]
[362025760,1747938649606,-430.0,0.00023238,2]
[362025762,1747938649616,-533.88,0.00023238,2]
[362025764,1747938649627,-1038.14,0.00023238,2]
[362025766,1747938649637,-486.91,0.00023238,2]
[362025768,1747938649647,-430.0,0.00023238,2]
[362025770,1747938649657,-1108.09,0.00023238,2]
[362025772,1747938649668,-476.75,0.00023238,2]
[362025774,1747938649678,-549.04,0.00023238,2]
[362025776,1747938649689,-430.0,0.00023238,2]
[362025778,1747938649699,-922.95,0.00023238,2]
[362025780,1747938649709,-1576.53,0.00023238,2]
[362025783,1747938649720,-432.68,0.00023238,2]
[362025785,1747938649731,-597.94,0.00023238,2]
[362025787,1747938649741,-1589.74,0.00023238,2]
[362025789,1747938649752,-1067.49,0.00023238,2]
[362025791,1747938649763,-430.0,0.00023238,2]
[362025793,1747938649774,-430.0,0.00023238,2]
[362025795,1747938649784,-677.05,0.00023238,2]
[362025797,1747938649794,-2373.35,0.00023238,2]
[362025799,1747938649804,-577.6,0.00023238,2]
[362025801,1747938649816,-430.0,0.00023238,2]
[362025803,1747938649826,-1145.41,0.00023238,2]
[362025805,1747938649837,-1524.66,0.00023238,2]
[362025807,1747938649847,-812.43,0.00023238,2]
[362025810,1747938649858,-557.38,0.00023238,2]
[362025812,1747938649868,-1282.81,0.00023238,2]
[362025814,1747938649878,-687.32,0.00023238,2]
[362025816,1747938649889,-430.0,0.00023238,2]
[362025818,1747938649899,-447.61,0.00023238,2]
[362025820,1747938649909,-938.74,0.00023238,2]
[362025822,1747938649919,-430.0,0.00023239,2]
[362025824,1747938649928,-430.0,0.00023239,2]
[362025826,1747938649939,-194.84,0.00023239,2]
[362025828,1747938649949,-812.63,0.00023239,2]
[362025830,1747938649959,-430.0,0.00023239,2]
[362025832,1747938649969,-853.64,0.0002324,2]
[362025834,1747938649979,-654.0,0.0002324,2]
[362025835,1747938649989,-1297.37510748,0.00023245,8]
[362025838,1747938650000,-430.0,0.00023287,2]
[362025840,1747938650010,-854.93,0.00023287,2]
[362025842,1747938650020,-1427.39,0.00023287,2]
[362025844,1747938650030,-2842.71,0.00023287,2]
[362025846,1747938650040,-467.16,0.00023287,2]
[362025848,1747938650051,-430.0,0.00023287,2]
[362025850,1747938650062,-918.76,0.00023287,2]
[362025852,1747938650072,-448.23,0.00023287,2]
[362025854,1747938650082,-722.25,0.00023287,2]
[362025856,1747938650093,-430.0,0.00023287,2]
[362025858,1747938650103,-430.0,0.00023287,2]
[362025860,1747938650112,-1047.05,0.00023287,2]
[362025862,1747938650123,-519.69,0.00023287,2]
[362025864,1747938650133,-646.58,0.00023287,2]
[362025866,1747938650142,-661.62,0.00023287,2]
[362025868,1747938650153,-5406.93,0.00023287,2]
[362025870,1747938650165,-1662.13,0.00023287,2]
[362025872,1747938650176,-3555.23,0.00023287,2]
[362025874,1747938650187,-806.46,0.00023287,2]
[362025876,1747938650197,-1325.31,0.00023287,2]
[362025878,1747938650208,-3314.96,0.00023287,2]
[362025880,1747938650218,-430.0,0.00023287,2]
[362025882,1747938650229,-516.66,0.00023287,2]
[362025885,1747938650239,-572.41,0.00023287,2]
[362025887,1747938650249,-564.26,0.00023287,2]
[362025889,1747938650260,-500.0,0.00023324,2]
[362025891,1747938650269,-500.0,0.00023324,2]
[362025893,1747938650280,-500.0,0.00023324,2]
[362025895,1747938650290,-156.26906826,0.00023324,2]
[362025897,1747938650300,-500.0,0.00023324,2]
[362025899,1747938650311,-153.0,0.0002337,2]
[362025901,1747938650321,-1000.0,0.00023377,2]
[362025903,1747938650331,-1000.0,0.00023377,2]
[362025905,1747938650341,-1000.0,0.00023377,2]
[362025907,1747938650351,-1000.0,0.00023377,2]
[362025909,1747938650362,-1297.37510748,0.00023452,9]
[362025911,1747938650371,-3000.0,0.00023463,2]
[362025913,1747938650382,-151.0,0.000235,5]
[362025915,1747938650394,-613.41,0.00023512,2]
[362025917,1747938650404,-521.56,0.00023512,2]
[362025919,1747938650414,-430.0,0.00023512,2]
[362025921,1747938650424,-430.0,0.00023512,2]
[362025923,1747938650436,-500.0,0.00023512,2]
[362025925,1747938650446,-430.0,0.00023512,2]
[362025927,1747938650455,-430.0,0.00023512,2]
[362025929,1747938650466,-533.88,0.00023512,2]
[362025931,1747938650476,-1038.14,0.00023512,2]
[362025933,1747938650486,-486.91,0.00023512,2]
[362025936,1747938650496,-475.53284221,0.00023512,2]
[362025938,1747938650506,-1108.09,0.00023512,2]
[362025940,1747938650518,-476.75,0.00023512,2]
[362025942,1747938650528,-549.04,0.00023512,2]
[362025944,1747938650538,-430.0,0.00023512,2]
[362025946,1747938650549,-922.95,0.00023512,2]
[362025948,1747938650559,-1576.53,0.00023512,2]
[362025950,1747938650570,-432.68,0.00023512,2]
[362025952,1747938650580,-597.94,0.00023512,2]
[362025954,1747938650590,-1589.74,0.00023512,2]
[362025956,1747938650600,-1067.49,0.00023512,2]
[362025958,1747938650610,-430.0,0.00023512,2]
[362025960,1747938650620,-212.40893355,0.00023512,2]
[362025962,1747938650630,-677.05,0.00023512,2]
[362025964,1747938650641,-2373.35,0.00023512,2]
[362025966,1747938650651,-577.6,0.00023512,2]
[362025968,1747938650661,-430.0,0.00023512,2]
[362025970,1747938650671,-1145.41,0.00023512,2]
[362025972,1747938650681,-1524.66,0.00023512,2]
[362025974,1747938650692,-812.43,0.00023512,2]
[362025976,1747938650702,-557.38,0.00023512,2]
[362025978,1747938650712,-1282.81,0.00023512,2]
[362025981,1747938650727,-687.32,0.00023512,2]
[362025983,1747938650745,-430.0,0.00023512,2]
[362025986,1747938650762,-447.61,0.00023512,2]
[362025989,1747938650778,-938.74,0.00023512,2]
[362025991,1747938650791,-430.0,0.00023513,2]
[362025994,1747938650806,-430.0,0.00023513,2]
[362025996,1747938650821,-194.84,0.00023513,2]
[362025999,1747938650836,-812.63,0.00023513,2]
[362026002,1747938650852,-430.0,0.00023513,2]
[362026004,1747938650867,-853.64,0.00023514,2]
[362026007,1747938650884,-654.0,0.00023514,2]
[362026010,1747938650900,-430.0,0.00023561,2]
[362026012,1747938650915,-854.93,0.00023561,2]
[362026015,1747938650930,-1427.39,0.00023561,2]
[362026018,1747938650946,-2842.71,0.00023561,2]
[362026020,1747938650960,-467.16,0.00023561,2]
[362026023,1747938650977,-430.0,0.00023561,2]
[362026025,1747938650991,-918.76,0.00023561,2]
[362026028,1747938651005,-448.23,0.00023561,2]
[362026030,1747938651017,-722.25,0.00023561,2]
[362026032,1747938651030,-257.94921486,0.00023561,2]
[362026036,1747938651054,-430.0,0.00023561,2]
[362026039,1747938651079,-1047.05,0.00023561,2]
[362026042,1747938651098,-519.69,0.00023561,2]
[362026043,1747938651115,-646.58,0.00023561,2]
[362026044,1747938651134,-661.62,0.00023561,2]
[362026045,1747938651153,-5406.93,0.00023561,2]
[362026048,1747938651171,-1662.13,0.00023561,2]
[362026051,1747938651186,-806.46,0.00023561,2]
[362026053,1747938651198,-1325.31,0.00023561,2]
[362026055,1747938651210,-3314.96,0.00023561,2]
[362026058,1747938651224,-430.0,0.00023561,2]
[362026061,1747938651242,-516.66,0.00023561,2]
[362026063,1747938651258,-572.41,0.00023561,2]
[362026066,1747938651270,-564.26,0.00023561,2]
[362026068,1747938651284,-1500.0,0.00023632,2]
[362026071,1747938651298,-1500.0,0.00023632,2]
[362026073,1747938651317,-1500.0,0.00023632,2]
[362026076,1747938651329,-1500.0,0.00023632,2]
[362026078,1747938651341,-1552.64168398,0.00023632,2]
[362026080,1747938651352,-1456.96205996,0.00023632,2]
[362026083,1747938651369,-1500.0,0.00023632,2]
[362026085,1747938651383,-1500.0,0.00023632,2]
[362026086,1747938651400,-1800.0,0.00023632,2]
[362026087,1747938651416,-1297.37510748,0.00023659,9]
[362026088,1747938651432,-1300.0,0.00023735,2]
[362026089,1747938651448,-613.41,0.00023786,2]
[362026090,1747938651464,-521.56,0.00023786,2]
[362026091,1747938651480,-430.0,0.00023786,2]
[362026092,1747938651494,-430.0,0.00023786,2]
[362026093,1747938651510,-500.0,0.00023786,2]
[362026095,1747938651523,-430.0,0.00023786,2]
[362026097,1747938651537,-512.69690292,0.00023786,2]
[362026099,1747938651550,-533.88,0.00023786,2]
[362026101,1747938651565,-1038.14,0.00023786,2]
[362026104,1747938651579,-486.91,0.00023786,2]
[362026106,1747938651593,-1108.09,0.00023786,2]
[362026109,1747938651611,-476.75,0.00023786,2]
[362026112,1747938651628,-549.04,0.00023786,2]
[362026114,1747938651645,-430.0,0.00023786,2]
[362026116,1747938651660,-922.95,0.00023786,2]
[362026117,1747938651674,-1576.53,0.00023786,2]
[362026118,1747938651688,-432.68,0.00023786,2]
[362026119,1747938651703,-597.94,0.00023786,2]
[362026122,1747938651717,-1589.74,0.00023786,2]
[362026124,1747938651732,-1067.49,0.00023786,2]
[362026127,1747938651746,-677.05,0.00023786,2]
[362026129,1747938651760,-2373.35,0.00023786,2]
[362026132,1747938651773,-577.6,0.00023786,2]
[362026134,1747938651787,-430.0,0.00023786,2]
[362026136,1747938651801,-1145.41,0.00023786,2]
[362026138,1747938651815,-1524.66,0.00023786,2]
[362026141,1747938651829,-812.43,0.00023786,2]
[362026143,1747938651843,-557.38,0.00023786,2]
[362026146,1747938651857,-1282.81,0.00023786,2]
[362026148,1747938651871,-687.32,0.00023786,2]
[362026150,1747938651884,-430.0,0.00023786,2]
[362026153,1747938651897,-447.61,0.00023786,2]
[362026155,1747938651910,-938.74,0.00023786,2]
[362026158,1747938651923,-430.0,0.00023787,2]
[362026160,1747938651938,-430.0,0.00023787,2]